[Event "57th Biel Festival MTO 2024"]
[White "Macovei,Andrei"]
[Black "Juksta,Karolis"]
[Site "Biel"]
[Round "5.10"]
[Annotator "ChessBase"]
[Result "1/2-1/2"]
[Date "2024.07.19"]
[WhiteElo "2479"]
[BlackElo "2400"]
[PlyCount "80"]
[TimeControl "60"]

1. e4 {[%emt 0:5:34]} e6 {[%emt 0:0:13]} 2. d4 {[%emt 0:0:53]} d5 {[%emt 0:0:12]} 3. e5 {[%emt 0:0:3]} c5 {[%emt 0:0:37]} 4. c3 {[%emt 0:0:1]} Qb6 {[%emt 0:2:4]} 5. Nf3 {[%emt 0:0:14]} Bd7 {[%emt 0:0:10]} 6. Be2 {[%emt 0:2:30]} Bb5 {[%emt 0:0:31]} 7. Bxb5+ {[%emt 0:4:49]} Qxb5 {[%emt 0:0:6]} 8. Na3 {[%emt 0:0:43]} Qd7 {[%emt 0:0:30]} 9. Nc2 {[%emt 0:14:26]} cxd4 {[%emt 0:2:10]} 10. cxd4 {[%emt 0:0:14]} Nc6 {[%emt 0:0:8]} 11. O-O {[%emt 0:2:45]} Nge7 {[%emt 0:0:17]} 12. Ne3 {[%emt 0:15:32]} Ng6 {[%emt 0:43:10]} 13. h4 {[%emt 0:6:24]} Be7 {[%emt 0:5:52]} 14. h5 {[%emt 0:11:44]} Nh4 {[%emt 0:0:27]} 15. Nxh4 {[%emt 0:12:50]} Bxh4 {[%emt 0:0:22]} 16. Qg4 {[%emt 0:7:5]} Be7 {[%emt 0:2:36]} 17. Qxg7 {[%emt 0:0:13]} O-O-O {[%emt 0:0:18]} 18. Qg4 {[%emt 0:1:31]} f6 {[%emt 0:3:8]} 19. exf6 {[%emt 0:3:4]} Bxf6 {[%emt 0:0:21]} 20. Nc2 {[%emt 0:0:20]} Rhg8 {[%emt 0:2:58]} 21. Qh3 {[%emt 0:3:25]} Nxd4 {[%emt 0:13:12]} 22. Nxd4 {[%emt 0:0:20]} Bxd4 {[%emt 0:0:2]} 23. Be3 {[%emt 0:0:8]} Bxe3 {[%emt 0:3:1]} 24. Qxe3 {[%emt 0:1:6]} Kb8 {[%emt 0:6:45]} 25. Rfe1 {[%emt 0:0:32]} Qf7 {[%emt 0:1:37]} 26. Qxe6 {[%emt 0:2:11]} Qxh5 {[%emt 0:1:9]} 27. Qe5+ {[%emt 0:0:44]} Qxe5 {[%emt 0:0:1]} 28. Rxe5 {[%emt 0:0:3]} Rge8 {[%emt 0:4:28]} 29. Rae1 {[%emt 0:0:20]} Rxe5 {[%emt 0:0:23]} 30. Rxe5 {[%emt 0:0:2]} d4 {[%emt 0:12:17]} 31. Kf1 {[%emt 0:0:11]} d3 {[%emt 0:1:32]} 32. Ke1 {[%emt 0:7:27]} Rc8 {[%emt 0:0:8]} 33. Kd2 {[%emt 0:1:59]} Rc2+ {[%emt 0:0:5]} 34. Kxd3 {[%emt 0:0:2]} Rxf2 {[%emt 0:0:24]} 35. Kc3 {[%emt 0:1:52]} Rxg2 {[%emt 0:0:6]} 36. Re8+ {[%emt 0:0:3]} Kc7 {[%emt 0:0:5]} 37. Re7+ {[%emt 0:0:2]} Kc6 {[%emt 0:0:6]} 38. Rxh7 {[%emt 0:0:6]} Rg3+ {[%emt 0:0:5]} 39. Kc2 {[%emt 0:0:7]} Rg2+ {[%emt 0:0:3]} 40. Kc3 {[%emt 0:0:4]} Rg3+ {[%emt 0:0:3]} 1/2-1/2

[Event "57th Biel Festival MTO 2024"]
[White "Ayush Sharma"]
[Black "Assaubayeva,Bibisara"]
[Site "Biel"]
[Round "5.11"]
[Annotator "RC"]
[Result "1/2-1/2"]
[Date "2024.07.19"]
[WhiteElo "2325"]
[BlackElo "2472"]
[PlyCount "63"]
[TimeControl "60"]

1. Nf3 {[%emt 0:0:55]} c5 {[%emt 0:1:57]} 2. c4 {[%emt 0:0:53]} g6 {[%emt 0:1:1]} 3. d4 {[%emt 0:2:32]} Bg7 {[%emt 0:2:37]} 4. e4 {[%emt 0:3:46]} cxd4 {[%emt 0:3:28]} 5. Nxd4 {[%emt 0:0:8]} Nc6 {[%emt 0:0:45]} 6. Be3 {[%emt 0:0:7]} Qb6 {[%emt 0:2:26]} 7. Nb5 {[%emt 0:0:8]} Qa5+ {[%emt 0:0:9]} 8. N1c3 {[%emt 0:2:10]} Nf6 {[%emt 0:2:22]} 9. f3 {[%emt 0:16:1]} d6 {[%emt 0:2:30]} 10. Be2 {[%emt 0:7:19]} O-O {[%emt 0:1:21]} 11. O-O {[%emt 0:0:36]} Bd7 {[%emt 0:9:49]} 12. a3 {[%emt 0:4:25]} Rfc8 {[%emt 0:8:56]} 13. b4 {[%emt 0:13:32]} Qd8 {[%emt 0:0:43]} 14. Nd4 {[%emt 0:3:30]} Nxd4 {[%emt 0:5:27]} 15. Bxd4 {[%emt 0:2:29]} Be6 {[%emt 0:0:15]} 16. Nd5 {[%emt 0:2:45]} Bxd5 {[%emt 0:1:2]} 17. cxd5 {[%emt 0:9:8]} Nd7 {[%emt 0:2:1]} 18. Bxg7 {[%emt 0:0:11]} Kxg7 {[%emt 0:0:6]} 19. Qd4+ {[%emt 0:0:4]} Kg8 {[%emt 0:6:38]} 20. Rfc1 {[%emt 0:1:7]} Qb6 {[%emt 0:2:2]} 21. Qxb6 {[%emt 0:0:23]} Nxb6 {[%emt 0:0:21]} 22. Kf2 {[%emt 0:0:14]} Kf8 {[%emt 0:5:43]} 23. h4 {[%emt 0:2:27]} Ke8 {[%emt 0:3:32]} 24. a4 {[%emt 0:2:4]} Rxc1 {[%emt 0:7:34]} 25. Rxc1 {[%emt 0:0:14]} Rc8 {[%emt 0:5:47]} 26. Rxc8+ {[%emt 0:0:13]} Nxc8 {[%emt 0:0:2]} 27. Ke3 {[%emt 0:1:27]} e5 {[%emt 0:4:43]} 28. dxe6 {[%emt 0:0:59]} fxe6 {[%emt 0:3:53]} 29. Kf4 {[%emt 0:5:13]} Kf7 {[%emt 0:2:19]} 30. e5 {[%emt 0:7:59]} d5 {[%emt 0:1:28]} 31. g4 {[%emt 0:3:56]} h6 {[%emt 0:3:49]} 32. Bd3 {[%emt 0:4:1]} 1/2-1/2

[Event "57th Biel Festival MTO 2024"]
[White "Nurman,Alua"]
[Black "Materia,Marco"]
[Site "Biel"]
[Round "5.12"]
[Annotator "TA"]
[Result "1/2-1/2"]
[Date "2024.07.19"]
[WhiteElo "2274"]
[BlackElo "2453"]
[PlyCount "118"]
[TimeControl "60"]

{[%evp 29,118,13,8,13,10,0,10,0,0,0,6,0,0,0,0,0,0,0,0,13,0,0,2,27,3,17,10,10,0,-78,-80,-135,-128,-152,-138,-145,-120,-105,-107,-104,-30,-30,-30,-30,-37,-37,-37,-62,-60,-89,-52,-131,-143,-157,-87,-88,-89,-62,-63,-76,-70,-66,-67,-89,-76,-79,-45,-54,-50,-111,-23,-45,0,0,0,0,0,0,0,0,0,0,0,0,15,0,0,0,0,0,0]} 1. e4 {[%emt 0:7:52]} c5 {[%emt 0:0:3]} 2. Nf3 {[%emt 0:0:27]} e6 {[%emt 0:0:5]} 3. d4 {[%emt 0:0:14]} cxd4 {[%emt 0:0:4]} 4. Nxd4 {[%emt 0:0:4]} Nc6 {[%emt 0:0:3]} 5. Nc3 {[%emt 0:0:26]} Nf6 {[%emt 0:0:4]} 6. Be2 {[%emt 0:0:39]} d6 {[%emt 0:0:5]} 7. O-O {[%emt 0:0:31]} Be7 {[%emt 0:0:11]} 8. Be3 {[%emt 0:0:33]} O-O {[%emt 0:0:7]} 9. Kh1 {[%emt 0:3:20]} Qc7 {[%emt 0:13:36]} 10. f4 {[%emt 0:1:36]} a6 {[%emt 0:0:3]} 11. Qe1 {[%emt 0:0:19]} Nxd4 {[%emt 0:0:3]} 12. Bxd4 {[%emt 0:0:5]} b5 {[%emt 0:0:4]} 13. a3 {[%emt 0:0:6]} Bb7 {[%emt 0:0:4]} 14. Qg3 {[%emt 0:0:5]} Rad8 {[%emt 0:0:6]} 15. Rae1 {[%emt 0:0:17]} Bc6 {[%emt 0:0:5]} 16. Bd3 {[%emt 0:0:33]} Qd7 {[%emt 0:0:4]} 17. Nd1 {[%emt 0:0:40]} Nh5 {[%emt 0:0:4]} 18. Qg4 {[%emt 0:0:18]} Nf6 {[%emt 0:0:4]} 19. Qg3 {[%emt 0:0:45]} g6 {[%emt 0:14:53]} 20. f5 {[%emt 0:1:43]} e5 {[%emt 0:9:51]} 21. Be3 {[%emt 0:16:59]} Bxe4 {[%emt 0:3:18]} (21... Nxe4 $2 22. Bxe4 Bxe4 23. f6 Bxf6 24. Rxf6 $18 )22. Bh6 {[%emt 0:0:46][%csl LRe4,LRf8]} Bxd3 {[%emt 0:3:34]} 23. cxd3 {[%emt 0:1:23]} Rfe8 {[%emt 0:1:35]} 24. Qh4 {[%emt 0:3:28] Ne3 would now be deadly.} Nh5 {[%emt 0:22:16]} (24... gxf5 25. Qg5+ Kh8 26. Qg7# )25. f6 {[%emt 0:4:11]} Nxf6 {[%emt 0:2:16]} ({But not} 25... Bf8 $2 26. Bxf8 Rxf8 27. g4 Nxf6 28. Rxf6 $18 )26. Rxf6 {[%emt 0:3:30]} Qf5 $132 {[%emt 0:0:8][%mdl 2048] [#] Inhibits Rf1. Black is not keeping still} 27. Bg5 {[%emt 0:15:39]} Bxf6 {[%emt 0:0:5]} 28. Bxf6 {[%emt 0:0:4]} Rc8 {[%emt 0:0:35][%cal Oe8e6]} 29. Kg1 {[%emt 0:11:56]} (29. Nc3 $11 )Re6 $1 $17 {[%emt 0:6:24]} ({Stronger than} 29... Qxd3 30. Qh6 Qd4+ 31. Kh1 )30. Rf1 {[%emt 0:5:40]} (30. Bg5 $142 f6 (30... Qxd3 31. Ne3 $15 )31. Bh6 )Qxd3 {[%emt 0:0:20] Threatens to win with ...Rc1.} 31. Nf2 {[%emt 0:1:3]} Qe3 {[%emt 0:8:52] aiming for ...h6.} 32. Bg5 {[%emt 0:2:26]} Qd4 {[%emt 0:1:45]} 33. Qxd4 {[%emt 0:6:13]} exd4 {[%emt 0:0:4]} 34. Nd3 {[%emt 0:0:22]} f5 {[%emt 0:3:31]} ({Black should play} 34... Rc2 $17 {Strongly threatening ...Ree2.} 35. Bc1 a5 (35... Ree2 36. Nf4 $17 ))35. Rf2 $1 $11 {[%emt 0:2:34] Prevents Re2} Kf7 {[%emt 0:6:13]} 36. Rd2 {[%emt 0:2:35]} Re4 {[%emt 0:9:4]} 37. h3 {[%emt 0:1:28]} a5 {[%emt 0:4:6]} 38. Kh2 {[%emt 0:3:26]} Rc4 {[%emt 0:0:36]} 39. Nf2 {[%emt 0:4:32]} Re8 {[%emt 0:0:18]} 40. b3 {[%emt 0:4:13]} (40. Nd3 $15 )Rc3 $17 {[%emt 0:0:42]} 41. Rxd4 {[%emt 0:50:37]} Rxb3 {[%emt 0:5:25]} (41... Re6 $142 42. b4 Rxa3 )42. Rxd6 {[%emt 0:0:0]} Rxa3 {[%emt 0:7:51] And now ...a4 would win.} 43. Nd3 {[%emt 0:0:0]} Rc3 {[%emt 0:11:42] ...b4 is the strong threat.} 44. Bd2 $1 {[%emt 0:0:0] [#]} Rc2 {[%emt 0:3:3]} 45. Bxa5 {[%emt 0:0:0]} Ree2 {[%emt 0:1:19]} 46. Ne1 {[%emt 0:0:0]} Ra2 {[%emt 0:2:25]} 47. Bc3 {[%emt 0:0:0]} Ra3 {[%emt 0:7:31]} 48. Bd2 {[%emt 0:0:0]} Rb3 {[%emt 0:2:16][%cal Oh7h6]} 49. Ba5 {[%emt 0:2:37]} (49. Rd5 $15 )Ke7 {[%emt 0:4:37]} ({Black should try} 49... f4 $17 {Hoping for ...f3.} 50. Rd4 g5 )50. Rd4 {[%emt 0:1:7]} Re4 {[%emt 0:1:24]} 51. Rd5 {[%emt 0:0:45] The position is equal.} Ke6 {[%emt 0:1:22]} 52. Rd8 {[%emt 0:0:21]} Ra3 {[%emt 0:2:6]} 53. Bd2 {[%emt 0:0:32]} Ke7 {[%emt 0:4:3]} 54. Bg5+ {[%emt 0:1:44]} Kf7 {[%emt 0:0:4]} 55. Nd3 {[%emt 0:1:0]} Rc3 {[%emt 0:2:13]} 56. Nf4 {[%emt 0:2:6]} Rc7 {[%emt 0:0:25] Dodges Rd7+} 57. Rb8 {[%emt 0:1:14][%mdl 1024] White has compensation.} b4 {[%emt 0:1:37]} 58. h4 {[%emt 0:2:5]} Rd7 {[%emt 0:0:50]} 59. Rb6 {[%emt 0:3:10]} Rc4 {[%emt 0:1:52] Weighted Error Value: White=0.11 (very precise) /Black=0.11 (very precise) .  Mistake:       	White=4     	Black=3      Inaccurate:     	White=1     	Black=3      OK:         	White=16    	Black=18     Best:        	White=5     	Black=5      Strong:       	White=2     	Black=1} 1/2-1/2

[Event "57th Biel Festival MTO 2024"]
[White "Xue,Haowen"]
[Black "Balabayeva,Xeniya"]
[Site "Biel"]
[Round "5.13"]
[Annotator "TA"]
[Result "1/2-1/2"]
[Date "2024.07.19"]
[WhiteElo "2452"]
[BlackElo "2246"]
[PlyCount "144"]
[TimeControl "60"]

{[%evp 48,144,128,109,128,130,148,126,129,100,94,108,105,86,88,69,173,60,83,56,88,73,97,91,87,90,139,131,226,198,174,0,0,0,0,0,0,0,0,0,0,0,0,0,0,0,0,0,0,0,0,0,0,0,0,0,0,0,0,0,0,0,0,0,0,0,0,0,0,0,0,0,0,0,0,0,0,0,0,0,0,0,0,0,0,0,0,0,0,-116,0,0,0,0,0,0,0,0,0]} 1. d4 {[%emt 0:0:21]} d5 {[%emt 0:0:10]} 2. c4 {[%emt 0:0:5]} e6 {[%emt 0:0:6]} 3. Nf3 {[%emt 0:0:4]} Nf6 {[%emt 0:0:9]} 4. Nc3 {[%emt 0:0:5]} c6 {[%emt 0:3:55]} 5. Bg5 {[%emt 0:0:8]} h6 {[%emt 0:2:42]} 6. Bh4 {[%emt 0:0:27]} Be7 {[%emt 0:1:11]} 7. e3 {[%emt 0:0:35]} Nbd7 {[%emt 0:1:19]} 8. Qc2 {[%emt 0:3:2]} O-O {[%emt 0:3:1]} 9. a3 {[%emt 0:3:44]} b6 {[%emt 0:6:40]} 10. cxd5 {[%emt 0:1:13]} cxd5 {[%emt 0:4:27]} 11. Bd3 {[%emt 0:1:16]} Bb7 {[%emt 0:0:10]} 12. O-O {[%emt 0:2:0]} Rc8 {[%emt 0:1:57]} 13. Rfc1 {[%emt 0:4:44]} a6 {[%emt 0:10:29]} 14. Qe2 {[%emt 0:7:48]} b5 {[%emt 0:2:25]} 15. Nd2 {[%emt 0:2:58]} Nb6 {[%emt 0:17:44]} 16. b4 {[%emt 0:3:21]} Nc4 {[%emt 0:12:2]} 17. Nb3 {[%emt 0:1:35]} Nd7 {[%emt 0:9:49]} 18. Bxe7 {[%emt 0:2:12]} Qxe7 {[%emt 0:0:2]} 19. Nc5 {[%emt 0:2:58]} Nxc5 {[%emt 0:3:57]} 20. bxc5 {[%emt 0:2:0]} e5 {[%emt 0:2:56]} 21. a4 {[%emt 0:8:24]} Bc6 {[%emt 0:3:17]} 22. Rab1 {[%emt 0:14:57]} Rb8 {[%emt 0:4:17]} 23. axb5 {[%emt 0:0:26]} axb5 {[%emt 0:0:10]} 24. Na2 {[%emt 0:2:41]} Qf6 {[%emt 0:3:6]} ({Black should play} 24... exd4 25. exd4 (25. Nb4 Qxc5 26. Na6 Qb6 $11 )Qg5 )25. Nb4 $16 {[%emt 0:1:47]} e4 {[%emt 0:4:46]} 26. Bc2 $1 {[%emt 0:0:49]} Ra8 {[%emt 0:1:41]} 27. Ra1 {[%emt 0:0:58]} Qe6 {[%emt 0:1:21]} 28. Qd1 {[%emt 0:3:0]} Qd7 {[%emt 0:3:1]} 29. Rxa8 {[%emt 0:1:25]} Rxa8 {[%emt 0:0:7]} 30. Ra1 {[%emt 0:0:6]} Qb7 {[%emt 0:1:2]} 31. h3 {[%emt 0:2:8]} Kf8 {[%emt 0:3:57]} (31... Bd7 $14 )32. Rb1 {[%emt 0:4:3]} (32. Rxa8+ $1 $18 Qxa8 33. Bb3 )g6 {[%emt 0:1:52]} 33. Qe1 {[%emt 0:5:21]} Na3 {[%emt 0:1:34]} 34. Ra1 {[%emt 0:1:21]} Nxc2 {[%emt 0:1:34]} 35. Rxa8+ {[%emt 0:0:42]} (35. Nxc2 $6 Rxa1 36. Qxa1 b4 $11 )Qxa8 {[%emt 0:0:1]} 36. Nxc2 {[%emt 0:0:8]} Ke7 {[%emt 0:0:44]} (36... Ke8 $142 37. Qc3 g5 )37. Nb4 $16 {[%emt 0:4:44]} Kd7 {[%emt 0:0:25]} (37... Kf8 $16 38. Qd1 Bd7 )38. f3 $18 {[%emt 0:1:47]} exf3 {[%emt 0:0:40] [#]} 39. gxf3 $2 {[%emt 0:5:45]} (39. Qf1 $1 $18 {[%cal Rf1f3]} )Qa3 $11 {[%emt 0:0:37]} 40. Qd2 {[%emt 0:1:34]} f6 {[%emt 0:0:30]} 41. Kh2 {[%emt 0:52:11]} Qb3 {[%emt 0:7:13]} 42. Kg3 {[%emt 0:0:0]} Qb1 {[%emt 0:1:52]} 43. Kg2 {[%emt 0:0:0]} Qb3 {[%emt 0:4:16]} 44. Kf2 {[%emt 0:0:0]} Bb7 {[%emt 0:3:9]} 45. Nd3 {[%emt 0:0:0]} Bc6 {[%emt 0:1:49]} 46. Kg3 {[%emt 0:0:0]} Qb1 {[%emt 0:2:17]} 47. Kg2 {[%emt 0:0:0]} Qb3 {[%emt 0:2:8]} 48. Nb4 {[%emt 0:0:0]} Bb7 {[%emt 0:1:29]} 49. h4 {[%emt 0:0:0]} h5 {[%emt 0:3:13]} 50. Nd3 {[%emt 0:0:0]} Bc6 {[%emt 0:0:32]} 51. Nb4 {[%emt 0:0:0]} Bb7 {[%emt 0:1:24]} 52. Kf2 {[%emt 0:0:0]} Qa3 {[%emt 0:4:37]} 53. Kg3 {[%emt 0:0:0]} Qb3 {[%emt 0:1:48]} 54. Kg2 {[%emt 0:0:0]} Qa3 {[%emt 0:0:32]} 55. Kh2 {[%emt 0:0:0]} Bc6 {[%emt 0:1:14]} 56. Kg3 {[%emt 0:0:0]} Bb7 {[%emt 0:4:27]} 57. Kg2 {[%emt 0:0:0]} Qb3 {[%emt 0:0:19]} 58. Kf2 {[%emt 0:0:0]} Qa3 {[%emt 0:0:24]} 59. Qe1 {[%emt 0:0:0]} Qb2+ {[%emt 0:2:33]} 60. Kg3 {[%emt 0:0:0]} Qb3 {[%emt 0:0:30]} 61. Kh3 {[%emt 0:0:0]} Qb2 {[%emt 0:18:24]} 62. Nd3 {[%emt 0:0:0]} Qc2 {[%emt 0:0:33]} 63. Nf4 {[%emt 0:2:10]} Qf5+ {[%emt 0:5:2]} 64. Kg3 {[%emt 0:0:43]} g5 {[%emt 0:0:19]} 65. Ng2 {[%emt 0:0:40]} (65. Nxh5 $2 gxh4+ 66. Kxh4 Qg5+ (66... Qxf3 67. Nf4 $11 )67. Kh3 Qxh5+ $19 )Ke7 {[%emt 0:5:7]} 66. Qa5 {[%emt 0:4:41]} gxh4+ {[%emt 0:0:53]} 67. Kh2 {[%emt 0:0:13]} Bc8 {[%emt 0:1:49]} 68. Qxb5 {[%emt 0:3:43] [#]} (68. Nf4 $11 )Qxf3 {[%emt 0:0:0]} (68... Qc2 $1 $17 {...h3 is the strong threat.} 69. Kg1 Qd2 (69... Qd1+ $2 70. Qf1 $18 ))69. Qb8 $11 {[%emt 0:0:0]} (69. Nxh4 $2 {too greedy.} Qh3+ (69... Qxe3 70. Qb7+ Bxb7 71. Nf5+ Kf7 72. Nxe3 $11 )70. Kg1 Qxe3+ (70... Qxh4 $2 71. Kf1 $19 )71. Kf1 Qf4+ (71... Qxd4 $2 72. Qe2+ Kd8 73. Qxh5 $19 )(71... Bh3+ $2 72. Ng2 $19 )72. Ke2 Qxh4 $19 )h3 {[%emt 0:0:0]} 70. Nf4 {[%emt 0:0:0]} Qf2+ {[%emt 0:0:0]} 71. Kh1 {[%emt 0:0:0]} Qf1+ {[%emt 0:0:0]} 72. Kh2 {[%emt 0:0:0]} Qf2+ {[%emt 0:0:0]} 1/2-1/2

[Event "57th Biel Festival MTO 2024"]
[White "Sethuraman,S.P."]
[Black "Munguntuul,Batkhuyag"]
[Site "Biel"]
[Round "5.14"]
[Annotator "TA"]
[Result "1-0"]
[Date "2024.07.19"]
[WhiteElo "2587"]
[BlackElo "2376"]
[PlyCount "99"]
[TimeControl "60"]

{[%evp 20,99,-3,-5,-7,0,0,0,-6,-7,0,-2,-11,-27,-20,-21,-21,-24,0,0,0,0,224,239,229,209,227,200,207,49,170,150,197,131,125,121,139,146,104,114,123,99,162,164,156,164,156,178,245,245,336,347,406,406,928,895,1060,1052,808,681,29962,29961,29966,29965,29967,29968,29968,29969,29969,29970,29974,29975,29974,29976,29976,29975,29975,29976,29976,29977,29975,29970]} 1. e4 {[%emt 0:0:10]} c6 {[%emt 0:0:4]} 2. d4 {[%emt 0:0:6]} d5 {[%emt 0:0:4]} 3. e5 {[%emt 0:0:5]} c5 {[%emt 0:0:6]} 4. Nf3 {[%emt 0:0:58]} cxd4 {[%emt 0:0:8]} 5. Nxd4 {[%emt 0:0:7]} Nc6 {[%emt 0:0:6]} 6. Nxc6 {[%emt 0:0:9] B12: Caro-Kann (Vorstoß-Variante).} bxc6 {[%emt 0:0:1]} 7. Bd3 {[%emt 0:0:2]} Qc7 {[%emt 0:0:10]} 8. Qe2 {[%emt 0:0:7]} e6 {[%emt 0:0:3]} 9. Nd2 {[%emt 0:0:39]} Bc5 {[%emt 0:0:7]} 10. h4 $146 {[%emt 0:11:10]} ({Predecessor:} 10. Nf3 Ne7 11. Bf4 Bb7 12. h4 Qb6 13. h5 h6 14. c4 dxc4 15. Bxc4 Bb4+ 16. Kf1 {0-1 Ten Hertog,H (2475)-Sandipan,C (2548) Leiden op-A 12th 2018 (7)} )Ne7 {[%emt 0:4:48]} 11. h5 {[%emt 0:0:20]} h6 {[%emt 0:4:12]} 12. c3 {[%emt 0:3:59]} a5 {[%emt 0:3:54]} 13. Nb3 {[%emt 0:3:36]} Bb6 {[%emt 0:1:23]} 14. Nd4 {[%emt 0:0:7]} Qa7 {[%emt 0:27:0]} 15. Be3 {[%emt 0:6:28]} Ba6 {[%emt 0:4:38]} 16. O-O-O {[%emt 0:1:11]} Bxd3 {[%emt 0:5:13]} 17. Rxd3 {[%emt 0:1:4]} O-O {[%emt 0:6:44]} 18. g4 {[%emt 0:14:26]} c5 {[%emt 0:4:12]} 19. Nb5 {[%emt 0:5:10]} Qd7 {[%emt 0:2:44]} 20. Rdd1 {[%emt 0:2:19]} f5 $2 {[%emt 0:4:53]} (20... c4 $1 $11 {und Schwarz ist OK.} 21. Nd6 Bxe3+ 22. Qxe3 Qa7 )21. exf6 $1 $18 {[%emt 0:1:38]} Rxf6 {[%emt 0:0:6]} 22. g5 {[%emt 0:0:4]} hxg5 {[%emt 0:10:25]} 23. Bxg5 {[%emt 0:0:25]} Rf5 {[%emt 0:9:24]} 24. Rhg1 $2 {[%emt 0:1:28]} (24. f4 $18 )Kh7 {[%emt 0:4:13]} (24... c4 $1 $14 )25. c4 {[%emt 0:12:55]} Raf8 {[%emt 0:7:40] [#]} (25... Nc6 $16 {war nötig.} )26. f4 {[%emt 0:30:28]} (26. Bxe7 $1 $18 Qxe7 27. cxd5 Rxf2 28. Qe4+ (28. Qxe6 Bd8 $16 )Kh8 29. Rg6 (29. Qxe6 Qf7 $18 )(29. dxe6 Qf6 $18 ))Nc6 $16 {[%emt 0:1:41] [#]} 27. Rge1 $1 {[%emt 0:3:18]} Bd8 {[%emt 0:7:30]} 28. Qxe6 {[%emt 0:5:42]} Qxe6 {[%emt 0:0:2]} 29. Rxe6 {[%emt 0:0:4]} Bxg5 {[%emt 0:1:31]} 30. fxg5 {[%emt 0:0:4]} (30. Rxc6 Bxf4+ (30... Rxf4 $2 31. Kb1 $19 )31. Kc2 d4 $17 (31... dxc4 $2 32. Na3 $19 )(31... Rxh5 32. cxd5 Rh2+ 33. Kd3 $11 ))Nd4 {[%emt 0:0:12]} (30... Nd8 $16 31. Rd6 Rxg5 )31. Nxd4 $18 {[%emt 0:1:49]} cxd4 {[%emt 0:0:2]} 32. c5 {[%emt 0:1:42]} (32. Rxd4 dxc4 33. Rg6 (33. Rxc4 Rxg5 34. Re1 Rxh5 $11 )R8f7 $16 )Rxg5 {[%emt 0:0:21]} 33. Ra6 {[%emt 0:0:37]} ({Viel schlechter ist} 33. Rxd4 $6 Rc8 $11 )Rf2 {[%emt 0:1:58]} (33... Rxh5 {ist wohl besser.} 34. Rxa5 g5 35. Rxd4 Rh1+ 36. Rd1 Rxd1+ 37. Kxd1 Rf7 )34. Rxa5 $18 {[%emt 0:0:31]} d3 {[%emt 0:0:17]} 35. Rxd3 {[%emt 0:1:0]} Rg1+ {[%emt 0:1:24]} 36. Rd1 {[%emt 0:0:5]} Rxd1+ {[%emt 0:0:31]} (36... Rg4 $142 37. Kb1 (37. Rxd5 Rc4+ 38. Kd1 Rxb2 $11 )d4 )37. Kxd1 $18 {[%emt 0:0:4]} Rxb2 {[%emt 0:0:5]} 38. c6 {[%emt 0:0:3]} Rb8 {[%emt 0:0:43]} 39. Rxd5 {[%emt 0:2:48]} g6 {[%emt 0:0:7]} 40. Kc2 {[%emt 0:2:45]} Rc8 {[%emt 0:0:33]} 41. Rc5 {[%emt 0:6:10]} gxh5 {[%emt 0:1:8]} 42. Kc3 {[%emt 0:0:25]} ({Und nicht} 42. Rxh5+ Kg6 43. Rh2 (43. Rc5 Kf6 $11 )Rxc6+ 44. Kb3 Kf7 $11 )h4 {[%emt 0:2:51]} 43. Kc4 {[%emt 0:4:50]} h3 {[%emt 0:0:34]} 44. Kb5 {[%emt 0:0:43]} Rb8+ {[%emt 0:0:23]} 45. Ka6 {[%emt 0:0:25]} Ra8+ {[%emt 0:0:56]} 46. Kb7 {[%emt 0:0:7]} Rxa2 {[%emt 0:0:19]} 47. Rh5+ {[%emt 0:0:52]} Kg6 {[%emt 0:0:10]} 48. Rxh3 {[%emt 0:0:6]} Rb2+ {[%emt 0:0:15]} 49. Kc8 {[%emt 0:0:11]} Kf6 {[%emt 0:0:29]} 50. Re3 {[%emt 0:0:24]} 1-0

[Event "57th Biel Festival MTO 2024"]
[White "Chinguun,Sumiya"]
[Black "Valsecchi,Alessio"]
[Site "Biel"]
[Round "5.15"]
[Annotator "ChessBase"]
[Result "1-0"]
[Date "2024.07.19"]
[WhiteElo "2348"]
[BlackElo "2483"]
[PlyCount "99"]
[TimeControl "60"]

1. e4 {[%emt 0:1:0]} c5 {[%emt 0:0:10]} 2. Nc3 {[%emt 0:0:35]} d6 {[%emt 0:0:12]} 3. f4 {[%emt 0:0:19]} g6 {[%emt 0:0:29]} 4. Nf3 {[%emt 0:0:22]} Bg7 {[%emt 0:0:6]} 5. Bb5+ {[%emt 0:1:45]} Bd7 {[%emt 0:0:27]} 6. Bc4 {[%emt 0:0:17]} Nc6 {[%emt 0:3:7]} 7. d3 {[%emt 0:2:10]} Na5 {[%emt 0:3:44]} 8. Bd2 {[%emt 0:0:23]} e6 {[%emt 0:4:39]} 9. e5 {[%emt 0:7:4]} d5 {[%emt 0:11:43]} 10. Bb5 {[%emt 0:0:22]} Nc6 {[%emt 0:1:33]} 11. Bxc6 {[%emt 0:0:54]} Bxc6 {[%emt 0:1:34]} 12. Qe2 {[%emt 0:1:10]} Ne7 {[%emt 0:0:56]} 13. a4 {[%emt 0:10:0]} h5 {[%emt 0:9:19]} 14. d4 {[%emt 0:6:27]} b6 {[%emt 0:2:54]} 15. Qf2 {[%emt 0:8:23]} Nf5 {[%emt 0:1:49]} 16. Ne2 {[%emt 0:1:24]} Bf8 {[%emt 0:1:14]} 17. c3 {[%emt 0:4:24]} c4 {[%emt 0:2:11]} 18. O-O {[%emt 0:6:48]} a5 {[%emt 0:3:39]} 19. Qe1 {[%emt 0:2:35]} Be7 {[%emt 0:1:27]} 20. Ng3 {[%emt 0:7:43]} Rb8 {[%emt 0:9:31]} 21. Nxf5 {[%emt 0:9:43]} gxf5 {[%emt 0:0:12]} 22. Ra2 {[%emt 0:4:17]} b5 {[%emt 0:3:28]} 23. axb5 {[%emt 0:0:19]} Rxb5 {[%emt 0:0:9]} 24. Qg3 {[%emt 0:2:5]} Kd7 {[%emt 0:0:27]} 25. Rfa1 {[%emt 0:2:38]} Rg8 {[%emt 0:11:27]} 26. Ng5 {[%emt 0:1:16]} a4 {[%emt 0:2:40]} 27. Rxa4 {[%emt 0:3:7]} Rxb2 {[%emt 0:5:22]} 28. Ra7+ {[%emt 0:0:6]} Bb7 {[%emt 0:0:50]} 29. Bc1 {[%emt 0:1:35]} Rb3 {[%emt 0:2:29]} 30. Nxf7 {[%emt 0:2:45]} Qe8 {[%emt 0:9:3]} 31. Ng5 {[%emt 0:0:14]} Qg6 {[%emt 0:0:14]} 32. h4 {[%emt 0:2:15]} Rb8 {[%emt 0:0:16]} 33. Ba3 {[%emt 0:4:2]} Bxg5 {[%emt 0:2:8]} 34. fxg5 {[%emt 0:1:37]} f4 {[%emt 0:3:54]} 35. Qxf4 {[%emt 0:0:21]} Qf5 {[%emt 0:0:20]} 36. Qxf5 {[%emt 0:0:45]} exf5 {[%emt 0:0:1]} 37. Bb4 {[%emt 0:1:45]} Kc6 {[%emt 0:1:23]} 38. Rf1 {[%emt 0:1:3]} Bc8 {[%emt 0:1:16]} 39. Rh7 {[%emt 0:0:17]} Ra8 {[%emt 0:1:30]} 40. g6 {[%emt 0:0:41]} Be6 {[%emt 0:2:42]} 41. Rxh5 {[%emt 0:50:8]} Rxb4 {[%emt 0:50:50]} 42. cxb4 {[%emt 0:3:6]} Kb5 {[%emt 0:0:6]} 43. Rh7 {[%emt 0:6:40]} Rc8 {[%emt 0:0:40]} 44. Re7 {[%emt 0:1:12]} Bg8 {[%emt 0:0:15]} 45. h5 {[%emt 0:0:24]} Kxb4 {[%emt 0:0:9]} 46. Rc1 {[%emt 0:0:12]} c3 {[%emt 0:0:11]} 47. h6 {[%emt 0:0:24]} Kc4 {[%emt 0:0:58]} 48. h7 {[%emt 0:0:6]} Bxh7 {[%emt 0:0:5]} 49. gxh7 {[%emt 0:0:3]} Kxd4 {[%emt 0:0:9]} 50. Rc7 {[%emt 0:0:11]} 1-0